bitfinex/quotes_BTCUSD_20250718
["timestamp","ask_amount","ask_price","bid_price","bid_amount"]
[1752814779593,0.36101349,120550.0,120540.0,0.18351195]
[1752814779749,0.69901464,120550.0,120540.0,0.17521602]
[1752814780840,0.36101349,120550.0,120540.0,0.17521602]
[1752814781044,0.69901464,120550.0,120540.0,0.17521602]
[1752814781990,0.69901464,120550.0,120540.0,0.16692002]
[1752814782195,0.69901464,120550.0,120540.0,0.001]
[1752814783034,0.69901464,120550.0,120540.0,0.17521602]
[1752814784345,0.69901464,120550.0,120540.0,0.16692002]
[1752814784972,0.69901464,120550.0,120540.0,0.001]
[1752814785248,0.69901464,120550.0,120540.0,0.16692002]
[1752814785435,0.69901464,120550.0,120540.0,0.001]
[1752814787132,0.36101349,120550.0,120540.0,0.001]
[1752814787333,0.69901464,120550.0,120540.0,0.001]
[1752814787956,0.69897464,120550.0,120540.0,0.001]
[1752814788204,0.72947464,120550.0,120540.0,0.001]
[1752814789182,0.81498492,120550.0,120540.0,0.001]
[1752814790600,0.78448492,120550.0,120540.0,0.001]
[1752814792738,0.80088492,120550.0,120540.0,0.001]
[1752814792920,0.81728492,120550.0,120540.0,0.001]
[1752814793403,0.84598882,120550.0,120540.0,0.001]
[1752814793617,0.50798767,120550.0,120540.0,0.001]
[1752814793828,0.81728492,120550.0,120540.0,0.001]
[1752814795622,0.81728492,120550.0,120540.0,0.16692002]
[1752814795829,0.47928377,120550.0,120540.0,0.16692002]
[1752814796038,0.81728492,120550.0,120540.0,0.16692002]
[1752814797180,0.80088492,120550.0,120540.0,0.16692002]
[1752814797596,6.38943497,120550.0,120540.0,0.001]
[1752814798217,6.51795497,120550.0,120540.0,0.001]
[1752814798424,0.20536366,120530.0,120520.0,0.21324151]
[1752814798762,0.67395481,120530.0,120520.0,0.21529151]
[1752814798969,0.34425034,120530.0,120520.0,0.21529151]
[1752814799086,0.17831655,120530.0,120520.0,0.22358854]
[1752814799296,0.5163177,120530.0,120520.0,0.2318855]
[1752814799535,0.1700198,120530.0,120520.0,0.24324239]
[1752814799741,0.50595095,120530.0,120520.0,0.24336659]
[1752814800187,0.15965332,120530.0,120520.0,0.24336659]
[1752814800399,0.49765447,120530.0,120520.0,0.24336659]
[1752814800620,0.17726553,120540.0,120530.0,0.20613041]
[1752814800835,0.67074398,120540.0,120530.0,0.21647696]
[1752814801037,0.69358083,120540.0,120530.0,0.22477337]
[1752814801241,0.352542,120540.0,120530.0,0.24442591]
[1752814801458,0.14306085,120540.0,120530.0,0.24442591]
[1752814801948,0.15135623,120540.0,120530.0,0.24442591]
[1752814802171,0.15135623,120540.0,120530.0,0.24542591]
[1752814802414,0.15965174,120540.0,120530.0,0.24542591]
[1752814802651,0.15135623,120540.0,120530.0,0.24542591]
[1752814802878,0.39282633,120550.0,120540.0,0.21431167]
[1752814803078,0.54418187,120550.0,120540.0,0.22465725]
[1752814803339,0.54418187,120550.0,120540.0,0.22771725]
[1752814803819,0.21447596,120550.0,120540.0,0.22755382]
[1752814804088,0.55247711,120550.0,120540.0,0.22755389]
[1752814804347,0.42395711,120550.0,120540.0,0.21925824]
[1752814804582,0.55247711,120550.0,120540.0,0.22755389]
[1752814804813,0.71838337,120550.0,120540.0,0.22771732]
[1752814805279,0.55247711,120550.0,120540.0,0.22771732]
[1752814805507,0.71838337,120550.0,120540.0,0.21942167]
[1752814805736,0.7797902,120550.0,120540.0,0.21942181]
[1752814805965,0.71008868,120550.0,120540.0,0.21942181]
[1752814806189,0.71008868,120550.0,120540.0,0.2277176]
[1752814806416,0.71008868,120550.0,120540.0,0.23601332]
[1752814806973,0.71008868,120550.0,120540.0,0.2277176]
[1752814807179,0.49830011,120550.0,120540.0,0.23601332]
[1752814807388,0.50659542,120550.0,120540.0,0.24430897]
[1752814807625,0.67250168,120550.0,120540.0,0.24430897]
[1752814807832,0.67250209,120550.0,120540.0,0.23601332]
[1752814808298,0.67457209,120550.0,120540.0,0.23601332]
[1752814808991,0.3741576,120550.0,120540.0,0.23601332]
[1752814809225,0.66627719,120550.0,120540.0,0.23601332]
[1752814811000,0.66420719,120550.0,120540.0,0.23601332]
[1752814811217,0.66420719,120550.0,120540.0,0.2277176]
[1752814811645,0.65591209,120550.0,120540.0,0.2277176]
[1752814812099,0.2269776,120550.0,120540.0,0.2277176]
[1752814812333,0.65573702,120550.0,120540.0,0.23601332]
[1752814812537,0.65559129,120550.0,120540.0,0.23601332]
[1752814812946,0.65534775,120550.0,120540.0,0.23601332]
[1752814813614,0.52682775,120550.0,120540.0,0.2277176]
[1752814813828,0.65741775,120550.0,120540.0,0.2119176]
[1752814814035,0.65546255,120550.0,120540.0,0.2119176]
[1752814814690,0.52694255,120550.0,120540.0,0.2119176]
[1752814814917,0.35504806,120550.0,120540.0,0.2119176]
[1752814815137,0.65546255,120550.0,120540.0,0.2119176]
[1752814815879,0.65546255,120550.0,120540.0,0.2088576]
[1752814817011,0.65762255,120550.0,120540.0,0.2088576]
[1752814817483,0.65737901,120550.0,120540.0,0.2088576]
[1752814817900,0.65689194,120550.0,120540.0,0.2088576]
[1752814818398,0.65689194,120550.0,120540.0,0.20056181]
[1752814818808,0.64859663,120550.0,120540.0,0.20056181]
[1752814819055,0.64859663,120550.0,120540.0,0.01805]
[1752814819478,0.64859663,120550.0,120540.0,0.026346]
[1752814819707,0.64859663,120550.0,120540.0,0.00205]
[1752814820138,0.64850568,120550.0,120540.0,0.00205]
[1752814820657,0.34809119,120550.0,120540.0,0.00205]
[1752814820864,0.64850568,120550.0,120540.0,0.00205]
[1752814821265,0.65125204,120550.0,120540.0,0.00205]
[1752814822172,0.52273204,120550.0,120540.0,0.00205]
[1752814822424,0.61861213,120550.0,120530.0,0.22528309]
[1752814822663,0.12848,120540.0,120530.0,0.22528309]
[1752814822881,0.12848,120540.0,120530.0,0.22728309]
[1752814823645,0.13677579,120540.0,120530.0,0.23557929]
[1752814823865,0.13672773,120540.0,120530.0,0.23557929]
[1752814824084,0.14502352,120540.0,120530.0,0.23557929]
[1752814824499,0.14502331,120540.0,120530.0,0.23557929]
[1752814824922,0.1533191,120540.0,120530.0,0.23557929]
[1752814825148,0.15307556,120540.0,120530.0,0.23557929]
[1752814825405,0.15302764,120540.0,120530.0,0.23557929]
[1752814825613,0.1613235,120540.0,120530.0,0.23557929]
[1752814825819,0.16132336,120540.0,120530.0,0.23657929]
[1752814827059,0.49929456,120540.0,120530.0,0.23657929]
[1752814827499,0.50759042,120540.0,120530.0,0.23657929]
[1752814828185,0.49929456,120540.0,120530.0,0.23657929]
[1752814828584,0.49924664,120540.0,120530.0,0.23657929]
[1752814828746,0.49924671,120540.0,120530.0,0.23657929]
[1752814828975,0.49095085,120540.0,120530.0,0.23657929]
[1752814829923,0.49924671,120540.0,120530.0,0.23657929]
[1752814830128,0.49924664,120540.0,120530.0,0.23657929]
[1752814830339,0.5075425,120540.0,120530.0,0.23657929]
[1752814830973,0.1695713,120540.0,120530.0,0.23657929]
[1752814831214,0.16949893,120540.0,120530.0,0.23657929]
[1752814831424,0.50747013,120540.0,120530.0,0.23657929]
[1752814831640,0.50747048,120540.0,120530.0,0.23657929]
[1752814832057,0.49917455,120540.0,120530.0,0.23657929]
[1752814833051,0.49075741,120540.0,120530.0,0.23657929]
[1752814833709,0.48246162,120540.0,120530.0,0.23657929]
[1752814833932,0.4830423,120540.0,120530.0,0.23657929]
[1752814834146,0.39470732,120550.0,120540.0,0.19080739]
[1752814834355,0.52024732,120550.0,120540.0,0.19280746]
[1752814834553,0.52239732,120550.0,120540.0,0.19280746]
[1752814834751,0.68830358,120550.0,120540.0,0.20110304]
[1752814834961,0.69659889,120550.0,120540.0,0.19280746]
[1752814835767,0.69953889,120550.0,120540.0,0.19280746]
[1752814836676,0.69946652,120550.0,120540.0,0.19280746]
[1752814837296,0.57088969,120550.0,120540.0,0.18451181]
[1752814837506,0.69107466,120550.0,120540.0,0.18251181]
[1752814837943,0.69107466,120550.0,120540.0,0.19080753]
[1752814838930,0.68277942,120550.0,120540.0,0.18251195]
[1752814839134,0.67448411,120550.0,120540.0,0.18251195]
[1752814840140,0.67448411,120550.0,120540.0,0.19080781]
[1752814840353,0.67448411,120550.0,120540.0,0.1991036]
[1752814840982,0.70708411,120550.0,120540.0,0.19080781]
[1752814841609,0.70691393,120550.0,120540.0,0.19080781]
[1752814842008,0.69041393,120550.0,120540.0,0.19080781]
[1752814842207,0.69041393,120550.0,120540.0,0.18251195]
[1752814842430,0.69041393,120550.0,120530.0,0.2169864]
[1752814842690,0.34626706,120540.0,120530.0,0.22528302]
[1752814842872,0.47470706,120540.0,120530.0,0.22728302]
[1752814843040,0.13673586,120540.0,120530.0,0.22728302]
[1752814843241,0.47685706,120540.0,120530.0,0.21088302]
[1752814843641,0.47685706,120540.0,120530.0,0.20782302]
[1752814844090,0.48515285,120540.0,120530.0,0.20782302]
[1752814844641,0.48515285,120540.0,120530.0,0.19282302]
[1752814844846,0.53916682,120540.0,120530.0,0.18452682]
[1752814845062,0.6759024,120540.0,120530.0,0.19282309]
[1752814845270,0.6759024,120540.0,120530.0,0.19382309]
[1752814845485,0.5474624,120540.0,120530.0,0.19382309]
[1752814845696,0.66760682,120540.0,120530.0,0.19382309]
[1752814845908,0.53916682,120540.0,120530.0,0.19382309]
[1752814846121,0.66760682,120540.0,120530.0,0.19382309]
[1752814847388,0.32963562,120540.0,120530.0,0.20972309]
[1752814847626,0.66760682,120540.0,120530.0,0.20972309]
[1752814848977,0.66760682,120540.0,120530.0,0.20972316]
[1752814849181,0.66760682,120540.0,120530.0,0.21801943]
[1752814850234,0.66662963,120540.0,120530.0,0.21801943]
[1752814851664,0.53818963,120540.0,120530.0,0.21801943]
[1752814851799,0.66658963,120540.0,120530.0,0.21801943]
[1752814852012,0.66561244,120540.0,120530.0,0.20972316]
[1752814852214,0.52891679,120540.0,120530.0,0.26709273]
[1752814852418,0.65731679,120540.0,120530.0,0.26709273]
[1752814852621,0.65731679,120540.0,120530.0,0.19382316]
[1752814853108,0.31934559,120540.0,120530.0,0.19382316]
[1752814853321,0.14512957,120540.0,120530.0,0.20211936]
[1752814853530,0.48310077,120540.0,120530.0,0.20211936]
[1752814853740,0.48310077,120540.0,120530.0,0.21741936]
[1752814853951,0.65731672,120540.0,120530.0,0.21741936]
[1752814854096,0.4913967,120540.0,120530.0,0.21741936]
[1752814854503,0.48310077,120540.0,120530.0,0.21741936]
[1752814854895,0.48511257,120540.0,120530.0,0.23607936]
[1752814855204,0.14714137,120540.0,120530.0,0.23607936]
[1752814855415,0.49340788,120540.0,120530.0,0.23607936]
[1752814855622,0.4932866,120540.0,120530.0,0.23607936]
[1752814855836,0.1553154,120540.0,120530.0,0.23607936]
[1752814856031,0.14701968,120540.0,120530.0,0.23607936]
[1752814856450,0.14701961,120540.0,120530.0,0.23607936]
[1752814856626,0.15531533,120540.0,120530.0,0.23607936]
[1752814857276,0.15523075,120540.0,120530.0,0.23607936]
[1752814858238,0.15498719,120540.0,120530.0,0.23607936]
[1752814858437,0.16328305,120540.0,120530.0,0.23607936]
[1752814858644,0.50125425,120540.0,120530.0,0.23607936]
[1752814858877,0.50125418,120540.0,120530.0,0.23607936]
[1752814859584,0.50955004,120540.0,120530.0,0.23607936]
[1752814859795,0.50125418,120540.0,120530.0,0.23607936]
[1752814860014,0.50125425,120540.0,120530.0,0.23607936]
[1752814860212,0.15498719,120540.0,120530.0,0.23607936]
[1752814860438,0.00829538,120540.0,120530.0,0.57405056]
[1752814860621,0.5707193,120550.0,120540.0,0.19080739]
[1752814860867,0.70938406,120550.0,120540.0,0.18455181]
[1752814861057,0.70938406,120550.0,120540.0,0.19284746]
[1752814861287,0.2347581,120550.0,120540.0,0.18251195]
[1752814861466,0.7010893,120550.0,120540.0,0.19080781]
[1752814861941,0.2347581,120550.0,120540.0,0.1991036]
[1752814862157,0.7010893,120550.0,120540.0,0.20739932]
[1752814864315,0.69279434,120550.0,120540.0,0.1991036]
[1752814866178,0.67620393,120550.0,120540.0,0.19080781]
[1752814867401,0.70730393,120550.0,120540.0,0.19080781]
[1752814867819,0.35403273,120550.0,120540.0,0.19080781]
[1752814868083,0.67620393,120550.0,120540.0,0.1991036]
[1752814869753,0.67620393,120550.0,120540.0,0.20739932]
[1752814870977,0.67620393,120550.0,120540.0,0.1991036]
[1752814872259,0.67620393,120550.0,120540.0,0.20739932]
[1752814873241,0.33823273,120550.0,120540.0,0.20739932]
[1752814873465,0.67620393,120550.0,120540.0,0.20739932]
[1752814874339,0.67620393,120550.0,120540.0,0.1991036]
[1752814874546,0.67620393,120550.0,120540.0,0.20739932]
[1752814874723,0.67620393,120550.0,120540.0,0.20739897]
[1752814875248,0.3465279,120550.0,120540.0,0.20739897]
[1752814875462,0.3465279,120550.0,120540.0,0.2501679]
[1752814875693,0.6844991,120550.0,120540.0,0.2501679]
[1752814875866,0.3465279,120550.0,120540.0,0.20943862]
[1752814876070,0.6844991,120550.0,120540.0,0.20739862]
[1752814876277,0.5268878,120550.0,120540.0,0.20739862]
[1752814876497,0.2347581,120550.0,120540.0,0.19284718]
[1752814876725,0.70934461,120550.0,120540.0,0.19284718]
[1752814876936,0.70104965,120550.0,120540.0,0.19284718]
[1752814878947,0.36307845,120550.0,120540.0,0.18455153]
[1752814879154,0.70104965,120550.0,120540.0,0.18455153]
[1752814879646,0.70104965,120550.0,120540.0,0.18455181]
[1752814879861,0.70056159,120550.0,120540.0,0.19284753]
[1752814880384,0.69226642,120550.0,120540.0,0.18455181]
[1752814880870,0.69226642,120550.0,120540.0,0.17625602]
[1752814881077,0.34599998,120550.0,120540.0,0.17625602]
[1752814881279,0.68397118,120550.0,120540.0,0.18455195]
[1752814881475,0.68393118,120550.0,120540.0,0.17625602]
[1752814881698,0.67563587,120550.0,120540.0,0.17421602]
[1752814883572,0.33766467,120550.0,120540.0,0.17421602]
[1752814883767,0.67563587,120550.0,120540.0,0.17421602]
[1752814884325,0.54735587,120550.0,120540.0,0.008296]
[1752814884395,0.00829579,120540.0,120530.0,0.2330786]
[1752814884601,0.13657579,120540.0,120530.0,0.2351886]
[1752814885948,0.13657579,120540.0,120530.0,0.2361886]
[1752814886163,0.14487151,120540.0,120530.0,0.2361886]
[1752814887205,0.15316716,120540.0,120530.0,0.2361886]
[1752814887639,0.16146302,120540.0,120530.0,0.2361886]
[1752814888313,0.49943422,120540.0,120530.0,0.2361886]
[1752814888773,0.37115422,120540.0,120530.0,0.2361886]
[1752814888995,0.49939422,120540.0,120530.0,0.2361886]
[1752814889130,0.5076898,120540.0,120530.0,0.2361886]
[1752814889350,0.5097398,120540.0,120530.0,0.2361886]
[1752814889569,0.67566024,120540.0,120530.0,0.20923336]
[1752814889776,0.68602308,120540.0,120530.0,0.17523041]
[1752814889999,1.01569842,120540.0,120530.0,0.001]
[1752814890219,0.67772722,120540.0,120530.0,0.001]
[1752814892641,0.67772722,120540.0,120530.0,0.17523047]
[1752814892874,0.21151602,120540.0,120530.0,0.17523047]
[1752814893100,0.33975602,120540.0,120530.0,0.18352709]
[1752814893293,0.67772722,120540.0,120530.0,0.19182364]
[1752814893518,0.64562722,120540.0,120530.0,0.20012012]
[1752814894490,0.64562722,120540.0,120530.0,0.20841646]
[1752814894719,0.64562694,120540.0,120530.0,0.24924883]
[1752814894927,0.48800243,120540.0,120530.0,0.25135883]
[1752814895142,0.49629829,120540.0,120530.0,0.25135841]
[1752814895752,0.16662302,120540.0,120530.0,0.21052563]
[1752814896120,0.15832709,120540.0,120530.0,0.21052563]
[1752814896343,0.49629829,120540.0,120530.0,0.21052563]
[1752814897261,0.36805829,120540.0,120530.0,0.21052563]
[1752814897474,0.48485243,120540.0,120530.0,0.21052563]
[1752814897703,0.49314829,120540.0,120530.0,0.21052563]
[1752814898133,0.36490829,120540.0,120530.0,0.21052563]
[1752814898396,0.71957726,120540.0,120530.0,0.17523034]
[1752814898616,1.03155,120540.0,120530.0,0.17523041]
[1752814898841,1.02325428,120540.0,120530.0,0.001]
[1752814899272,0.34731188,120540.0,120530.0,0.001]
[1752814899484,0.68528308,120540.0,120530.0,0.001]
[1752814899702,1.02325428,120540.0,120530.0,0.001]
[1752814900576,1.10876456,120540.0,120530.0,0.001]
[1752814901576,0.20483047,120530.0,120520.0,0.18266598]
[1752814901786,0.21517667,120530.0,120520.0,0.19096315]
[1752814902000,0.55629787,120530.0,120520.0,0.18266598]
[1752814902226,0.55629787,120530.0,120520.0,0.19926025]
[1752814902426,0.54800167,120530.0,120520.0,0.19926025]
[1752814903272,0.54800167,120530.0,120520.0,0.20755728]
[1752814903722,0.54800167,120530.0,120520.0,0.19926025]
[1752814904179,0.54800167,120530.0,120520.0,0.20855728]
[1752814904594,0.64560167,120530.0,120520.0,0.20855728]
[1752814904822,0.64560167,120530.0,120520.0,0.19196315]
[1752814905486,0.67720167,120530.0,120520.0,0.19196315]
[1752814905703,0.33923047,120530.0,120520.0,0.19196315]
[1752814905930,0.67720167,120530.0,120520.0,0.19196315]
[1752814906161,0.67720167,120530.0,120520.0,0.16707176]
[1752814906610,0.67720167,120530.0,120520.0,0.175369]
[1752814907063,0.66890499,120530.0,120520.0,0.175369]
[1752814907330,0.66890499,120530.0,120520.0,0.174369]
[1752814907545,0.33093379,120530.0,120520.0,0.0001242]
[1752814907753,0.66890499,120530.0,120520.0,0.17436913]
[1752814908190,0.66890499,120530.0,120520.0,0.18266643]
[1752814908621,0.66890499,120530.0,120520.0,0.19096367]
[1752814908836,0.33093379,120530.0,120520.0,0.19096367]
[1752814909057,0.67720161,120530.0,120520.0,0.19926084]
[1752814909482,0.67720161,120530.0,120520.0,0.20755794]
[1752814909905,0.67720161,120530.0,120520.0,0.19926084]
[1752814911240,0.67720161,120530.0,120520.0,0.19096367]
[1752814911660,0.67720161,120530.0,120520.0,0.18266643]
[1752814913130,0.67720161,120530.0,120520.0,0.17436913]
[1752814913366,0.66886499,120530.0,120520.0,0.17436913]
[1752814913608,0.66886499,120530.0,120520.0,0.18266643]
[1752814913979,0.33089379,120530.0,120520.0,0.18266643]
[1752814914183,0.66886499,120530.0,120520.0,0.18266643]
[1752814914394,0.66886499,120530.0,120520.0,0.17436913]
[1752814914597,0.66886499,120530.0,120520.0,0.18266643]
[1752814915249,0.54070499,120530.0,120520.0,0.17436913]
[1752814915478,0.66886499,120530.0,120520.0,0.17436913]
[1752814916357,0.78539931,120530.0,120520.0,0.0001242]
[1752814917397,0.65723931,120530.0,120520.0,0.0001242]
[1752814917813,0.78539931,120530.0,120520.0,0.0001242]
[1752814918248,0.65723931,120530.0,120520.0,0.0001242]
[1752814918455,0.78539931,120530.0,120520.0,0.0001242]
[1752814918718,0.75437527,120530.0,120520.0,0.0001242]
[1752814921002,0.41640407,120530.0,120520.0,0.0001242]
[1752814921177,0.75437527,120530.0,120520.0,0.0001242]
[1752814922670,0.75437527,120530.0,120520.0,0.16607176]
[1752814922874,0.60291161,120530.0,120520.0,0.17436906]
[1752814923081,0.72788161,120530.0,120520.0,0.22546142]
[1752814923282,0.72788161,120530.0,120520.0,0.23375859]
[1752814923454,0.26179041,120530.0,120520.0,0.23375859]
[1752814923664,0.72788161,120530.0,120520.0,0.22546142]
[1752814923891,0.59976161,120530.0,120520.0,0.21403418]
[1752814924124,0.74242429,120530.0,120520.0,0.2195963]
[1752814924336,0.74242429,120530.0,120520.0,0.22789347]
[1752814924677,0.5764905,120530.0,120520.0,0.23619057]
[1752814924883,0.58478718,120530.0,120520.0,0.2444876]
[1752814925084,0.75072097,120530.0,120520.0,0.23619057]
[1752814925315,0.75072097,120530.0,120520.0,0.22789347]
[1752814925493,0.74242484,120530.0,120520.0,0.22789347]
[1752814925700,0.74242484,120530.0,120520.0,0.2195963]
[1752814925911,0.60265195,120530.0,120520.0,0.0001242]
[1752814926129,0.73077195,120530.0,120520.0,0.0001242]
[1752814926586,0.73077195,120530.0,120520.0,0.16607176]
[1752814926826,0.73077195,120530.0,120520.0,0.0001242]
[1752814927308,0.73077195,120530.0,120520.0,0.16607176]
[1752814929376,0.60265195,120530.0,120520.0,0.0001242]
[1752814929578,0.73077195,120530.0,120520.0,0.16607176]
[1752814930806,0.72247527,120530.0,120520.0,0.0001242]
[1752814931686,0.80823489,120530.0,120520.0,0.0001242]
[1752814931889,0.47026369,120530.0,120520.0,0.0001242]
[1752814932091,0.72247527,120530.0,120520.0,0.16607176]
[1752814932650,0.72247527,120530.0,120520.0,0.17436913]
[1752814932866,0.59435527,120530.0,120520.0,0.16607176]
[1752814933067,0.72247527,120530.0,120520.0,0.16607176]
[1752814933272,0.59435527,120530.0,120520.0,0.16607176]
[1752814933481,0.72247527,120530.0,120520.0,0.16607176]
[1752814934368,0.72247527,120530.0,120520.0,0.0001242]
[1752814935032,0.80823489,120530.0,120520.0,0.0001242]
[1752814935217,0.72247527,120530.0,120520.0,0.0001242]
[1752814937355,0.59435527,120530.0,120520.0,0.0001242]
[1752814937566,0.72243527,120530.0,120520.0,0.0001242]
[1752814940529,0.75333527,120530.0,120520.0,0.0001242]
[1752814940748,0.83909489,120530.0,120520.0,0.0001242]
[1752814942330,0.75333527,120530.0,120520.0,0.0001242]
[1752814943684,0.63979612,120530.0,120520.0,0.0001242]
[1752814943898,0.76787612,120530.0,120520.0,0.0001242]
[1752814948610,0.17424486,120520.0,120510.0,0.16371233]
[1752814948818,0.64233606,120520.0,120510.0,0.1741232]
[1752814949479,0.64233606,120520.0,120510.0,0.16582514]
[1752814949682,0.64233606,120520.0,120510.0,0.1741232]
[1752814949889,0.64233606,120520.0,120510.0,0.16682514]
[1752814950103,0.64233606,120520.0,120510.0,0.1751232]
[1752814950958,0.64233606,120520.0,120510.0,0.18342119]
[1752814951550,0.65063323,120520.0,120510.0,0.19171911]
[1752814951712,0.65063323,120520.0,120510.0,0.18342119]
[1752814951910,0.65063323,120520.0,120510.0,0.19992119]
[1752814953810,0.31266203,120520.0,120510.0,0.1916232]
[1752814954192,0.65063323,120520.0,120510.0,0.20821904]
[1752814954393,0.65063323,120520.0,120510.0,0.20821911]
[1752814954595,0.65063323,120520.0,120510.0,0.21651696]
[1752814954912,0.65063323,120520.0,120510.0,0.20821911]
[1752814955593,0.65063323,120520.0,120510.0,0.21651696]
[1752814956076,0.48464567,120520.0,120510.0,0.21651696]
[1752814956288,0.48464567,120520.0,120510.0,0.22794468]
[1752814956504,0.50970122,120520.0,120510.0,0.24434427]
[1752814956697,0.50970122,120520.0,120510.0,0.23604669]
[1752814957150,0.67564878,120520.0,120510.0,0.23604669]
[1752814957899,0.50970122,120520.0,120510.0,0.23604669]
[1752814958107,0.67564878,120520.0,120510.0,0.2277489]
[1752814958666,0.67564878,120520.0,120510.0,0.19992105]
[1752814959054,0.67564878,120520.0,120510.0,0.18342105]
[1752814959290,0.54764878,120520.0,120510.0,0.18342105]
[1752814959493,0.67564878,120520.0,120510.0,0.18342105]
[1752814959719,0.67885878,120520.0,120510.0,0.18342105]
[1752814959921,0.55085878,120520.0,120510.0,0.17512313]
[1752814960117,0.67885878,120520.0,120510.0,0.17512313]
[1752814960490,0.67885878,120520.0,120510.0,0.18342105]
[1752814961053,0.67885878,120520.0,120510.0,0.1917189]
[1752814961595,0.67885878,120520.0,120510.0,0.18342105]
[1752814962623,0.67564878,120520.0,120510.0,0.2070189]
[1752814962981,0.33767758,120520.0,120510.0,0.2070189]
[1752814963188,0.38170122,120520.0,120510.0,0.22361441]
[1752814963388,0.50966122,120520.0,120510.0,0.22674407]
[1752814963591,0.17169002,120520.0,120510.0,0.22674407]
[1752814963823,0.50966122,120520.0,120510.0,0.21844642]
[1752814964458,0.34593495,120520.0,120510.0,0.21844642]
[1752814964686,0.68390615,120520.0,120510.0,0.21844642]
[1752814964969,0.55594615,120520.0,120510.0,0.20185091]
[1752814965170,0.34593495,120520.0,120510.0,0.20185091]
[1752814965350,0.68390615,120520.0,120510.0,0.19042306]
[1752814965757,0.67560898,120520.0,120510.0,0.19042306]
[1752814966487,0.67560898,120520.0,120510.0,0.19872091]
[1752814966686,0.67560898,120520.0,120510.0,0.2070187]
[1752814966912,0.67560898,120520.0,120510.0,0.19872091]
[1752814968350,0.65055343,120520.0,120510.0,0.19872091]
[1752814968657,0.51429613,120520.0,120510.0,0.19042306]
[1752814968782,0.64225613,120520.0,120510.0,0.19042306]
[1752814968982,0.63395876,120520.0,120510.0,0.1904232]
[1752814969526,0.63395876,120520.0,120510.0,0.00311281]
[1752814969708,0.63711876,120520.0,120510.0,0.00311281]
[1752814971068,0.50915876,120520.0,120510.0,0.00311281]
[1752814971273,0.63711876,120520.0,120510.0,0.00311281]
[1752814972990,0.50915876,120520.0,120510.0,0.00108281]
[1752814973196,0.63707876,120520.0,120510.0,0.00108281]
[1752814973519,0.50915876,120520.0,120510.0,0.00108281]
[1752814973847,0.63707876,120520.0,120510.0,0.00108281]
[1752814974547,0.64838284,120520.0,120510.0,0.00308281]
[1752814974886,0.64838284,120520.0,120510.0,0.16904414]
[1752814975094,0.50915876,120520.0,120510.0,0.1773422]
[1752814975227,0.63707876,120520.0,120510.0,0.18564019]
[1752814975871,0.63707876,120520.0,120510.0,0.1773422]
[1752814976107,0.63707876,120520.0,120510.0,0.00308281]
[1752814976488,0.63707876,120520.0,120510.0,0.00108281]
[1752814977233,0.29910756,120520.0,120510.0,0.00108281]
[1752814977635,0.63707876,120520.0,120510.0,0.00108281]
[1752814980301,0.73712989,120520.0,120510.0,0.00108281]
[1752814980518,0.76942989,120520.0,120510.0,0.00108281]
[1752814981018,0.73712989,120520.0,120510.0,0.00108281]
[1752814981388,0.39915869,120520.0,120510.0,0.00108281]
[1752814981588,0.60920989,120520.0,120510.0,8.281e-05]
[1752814981788,0.82288951,120520.0,120510.0,8.281e-05]
[1752814982016,0.60920989,120520.0,120510.0,8.281e-05]
[1752814982254,0.73708989,120520.0,120510.0,8.281e-05]
[1752814982960,0.97808109,120520.0,120510.0,8.281e-05]
[1752814983310,6.44596109,120520.0,120510.0,8.281e-05]
[1752814989912,6.10798989,120520.0,120510.0,8.281e-05]
[1752814990118,5.98010989,120520.0,120510.0,8.281e-05]
[1752814990325,6.19374951,120520.0,120510.0,8.281e-05]
[1752814991281,5.94920989,120520.0,120510.0,8.281e-05]
[1752814991488,0.94920989,120520.0,120510.0,8.281e-05]
[1752814991691,1.07708989,120520.0,120510.0,8.281e-05]
[1752814991844,6.07708989,120520.0,120510.0,8.281e-05]
[1752814993056,5.94920989,120520.0,120510.0,8.281e-05]
[1752814993277,0.60807869,120520.0,120510.0,0.20169414]
[1752814993446,1.07180989,120520.0,120510.0,0.20169414]
[1752814993658,1.07180989,120520.0,120510.0,0.03573281]
[1752814993872,1.14077603,120520.0,120510.0,0.03573281]
[1752814994080,1.01293603,120520.0,120510.0,0.04403087]
[1752814994281,1.07389989,120520.0,120510.0,0.21829012]
[1752814994756,1.07389989,120520.0,120510.0,0.2099922]
[1752814994960,1.07389989,120520.0,120510.0,0.04403087]
[1752814995171,1.07389989,120520.0,120510.0,0.2099922]
[1752814995874,1.07389989,120520.0,120510.0,0.04403087]
[1752814996119,1.07389989,120520.0,120510.0,0.03573281]
[1752814996538,1.15965951,120520.0,120510.0,0.03573281]
[1752814996747,0.73592869,120520.0,120510.0,0.2099922]
[1752814996954,1.07389989,120520.0,120510.0,0.2099922]
[1752814997135,0.94605989,120520.0,120510.0,0.21829019]
[1752814997423,1.08219726,120520.0,120510.0,0.21829019]
[1752814997793,1.08219726,120520.0,120510.0,0.2099922]
[1752814998153,1.08219726,120520.0,120510.0,0.02578087]
[1752814998484,1.12871052,120520.0,120510.0,8.281e-05]
[1752814998967,1.00087052,120520.0,120510.0,8.281e-05]
[1752814999092,0.79073932,120520.0,120510.0,8.281e-05]
[1752814999297,1.08520726,120520.0,120510.0,8.281e-05]
[1752814999706,0.95736726,120520.0,120510.0,8.281e-05]
[1752814999941,1.08520726,120520.0,120510.0,8.281e-05]
[1752815001419,1.08516726,120520.0,120510.0,8.281e-05]
[1752815002965,0.74719606,120520.0,120510.0,8.281e-05]
[1752815003202,1.08215726,120520.0,120510.0,0.00519281]
[1752815003401,1.08215726,120520.0,120510.0,0.02099281]
[1752815003607,1.08215726,120520.0,120510.0,0.01789281]
[1752815004013,0.74719606,120520.0,120510.0,0.00209281]
[1752815004239,1.08516726,120520.0,120510.0,0.00209281]
[1752815004453,0.74719606,120520.0,120510.0,0.00209281]
[1752815004694,1.08516726,120520.0,120510.0,0.00209281]
[1752815005411,1.08516726,120520.0,120510.0,8.281e-05]
[1752815006478,1.17092688,120520.0,120510.0,8.281e-05]
[1752815006696,1.41209808,120520.0,120510.0,8.281e-05]
[1752815006841,1.53989808,120520.0,120510.0,8.281e-05]
[1752815017880,1.42313846,120520.0,120510.0,8.281e-05]
[1752815018079,1.08512726,120520.0,120510.0,8.281e-05]
[1752815018287,1.13512726,120520.0,120510.0,8.281e-05]
[1752815020735,0.66939606,120520.0,120510.0,8.281e-05]
[1752815020939,1.13508726,120520.0,120510.0,8.281e-05]
[1752815021736,1.22084688,120520.0,120510.0,8.281e-05]
[1752815022251,1.22794218,120520.0,120510.0,8.281e-05]
[1752815022883,1.14218256,120520.0,120510.0,8.281e-05]
[1752815023930,1.48015376,120520.0,120510.0,8.281e-05]
[1752815029332,1.35243376,120520.0,120510.0,8.281e-05]
[1752815029536,0.01660115,120470.0,120460.0,0.024925]
[1752815029765,0.1888725,120460.0,120450.0,0.0004]
[1752815029991,0.1888725,120460.0,120450.0,0.00054978]
[1752815029992,6.2099449,120460.0,120450.0,0.00054978]
[1752815030199,0.5371889,120450.0,120440.0,0.0004]
[1752815030398,0.18890138,120440.0,120430.0,0.0004]
[1752815030610,0.63869928,120440.0,120430.0,0.00044989]
[1752815030882,5.98184928,120440.0,120430.0,0.00044989]